bitfinex/quotes_ETHUSD_20250903
["timestamp","ask_amount","ask_price","bid_price","bid_amount"]
[1756924400676,0.002,4474.6,4474.5,11.10697063]
[1756924400988,0.002,4474.6,4474.5,14.10697063]
[1756924404615,0.002,4475.1,4475.0,6.02663687]
[1756924404913,0.002,4475.1,4475.0,16.20527748]
[1756924405079,0.002,4475.1,4475.0,17.43137748]
[1756924405279,0.002,4475.1,4475.0,19.39798616]
[1756924405915,0.002,4475.1,4475.0,22.26016057]
[1756924406293,0.002,4475.5,4475.4,3.25033714]
[1756924406621,0.002,4475.5,4475.4,20.78425216]
[1756924406826,0.002,4475.5,4475.4,21.78645216]
[1756924407122,0.002,4475.5,4475.4,24.05436013]
[1756924408515,0.002,4475.5,4475.4,23.58596013]
[1756924409020,0.002,4475.5,4475.4,23.12136013]
[1756924409429,0.002,4475.5,4475.4,23.23336013]
[1756924409985,0.002,4475.5,4475.4,23.70936013]
[1756924410226,0.002,4475.5,4475.4,24.14216013]
[1756924410398,0.002,4475.5,4475.4,23.70936013]
[1756924410786,0.002,4475.5,4475.4,5.595]
[1756924411235,0.002,4475.5,4475.4,6.387]
[1756924411440,0.309,4475.5,4475.4,9.24917441]
[1756924411738,0.7698,4475.5,4475.4,9.24917441]
[1756924412038,0.7698,4475.5,4475.4,11.48361155]
[1756924412239,0.309,4475.5,4475.4,11.48361155]
[1756924412423,0.002,4475.5,4475.4,11.48361155]
[1756924413106,0.002,4475.5,4475.4,11.76871155]
[1756924413306,0.002,4475.5,4475.4,13.78770976]
[1756924414202,0.002,4475.5,4475.4,17.69650976]
[1756924418839,0.002,4475.5,4475.4,22.97745037]
[1756924419414,0.002,4475.5,4475.4,20.11527596]
[1756924421018,0.002,4475.5,4475.4,22.97745037]
[1756924421420,0.002,4475.5,4475.4,16.50460976]
[1756924421624,0.002,4475.5,4475.4,16.78970976]
[1756924422542,0.002,4475.5,4475.4,17.26570976]
[1756924422725,0.002,4475.5,4475.4,17.69850976]
[1756924422932,0.002,4475.5,4475.4,17.26570976]
[1756924423336,0.002,4475.5,4475.4,16.78970976]
[1756924425751,0.002,4475.5,4475.4,12.73760976]
[1756924425952,0.002,4475.5,4475.4,16.78670976]
[1756924426642,0.002,4475.5,4475.4,22.97345037]
[1756924426953,0.002,4476.9,4476.4,0.792]
[1756924427128,0.46280001,4476.8,4476.4,12.46074061]
[1756924427328,0.7698,4476.5,4476.4,6.274]
[1756924427640,0.7698,4476.5,4476.4,8.50793798]
[1756924428324,0.002,4476.5,4476.4,8.79303798]
[1756924428523,0.002,4476.5,4476.4,9.39545446]
[1756924428723,0.002,4476.5,4476.4,9.11035446]
[1756924428919,0.309,4476.5,4476.4,9.11035446]
[1756924429554,0.309,4476.5,4476.4,14.25970315]
[1756924429764,0.7698,4476.5,4476.4,13.65728667]
[1756924431634,0.7698,4476.5,4476.4,8.50693798]
[1756924431835,0.002,4476.7,4476.5,3.02588808]
[1756924432071,0.4608,4479.3,4477.6,2.23333928]
[1756924432365,0.4608,4479.3,4478.7,3.02479076]
[1756924432569,0.4608,4479.3,4478.7,8.51179076]
[1756924432778,0.76780001,4478.8,4478.7,6.278]
[1756924432945,1.25790001,4478.8,4478.7,6.48679953]
[1756924434976,3.49064092,4478.8,4478.7,5.69479953]
[1756924435268,3.49064092,4478.8,4478.7,1.92579953]
[1756924435565,4.06520182,4478.8,4478.7,5.69479953]
[1756924436568,4.06520182,4478.8,4478.7,5.69379953]
[1756924436954,4.17720182,4478.8,4478.7,5.69379953]
[1756924438672,3.60264092,4478.8,4478.7,5.69379953]
[1756924440159,2.34474092,4478.8,4478.7,5.69379953]
[1756924440366,3.09394092,4478.8,4478.7,5.69379953]
[1756924440853,3.59084092,4478.8,4478.7,5.69379953]
[1756924443778,3.59084092,4478.8,4478.7,1.92579953]
[1756924443977,4.17518948,4478.8,4478.7,5.68879953]
[1756924444949,3.59284092,4478.8,4478.7,5.68879953]
[1756924446860,1.36010001,4478.8,4478.7,5.68879953]
[1756924447067,0.40390001,4478.8,4478.7,5.68879953]
[1756924447669,0.11400001,4478.8,4478.7,5.68879953]
[1756924447867,2.34674092,4478.8,4478.7,5.48]
[1756924448071,3.59284092,4478.8,4478.7,5.48]
[1756924448449,3.59284092,4478.8,4478.7,8.30917441]
[1756924448869,3.09594092,4478.8,4478.7,8.30917441]
[1756924449463,3.59284092,4478.8,4478.7,8.30917441]
[1756924450678,1.36010001,4478.8,4478.7,8.30917441]
[1756924450977,3.59284092,4478.8,4478.7,8.30917441]
[1756924452058,0.40390001,4478.8,4478.7,8.30917441]
[1756924452359,2.63664092,4478.8,4478.7,8.30917441]
[1756924453082,3.09594092,4478.8,4478.7,8.30917441]
[1756924453283,3.59284092,4478.8,4478.7,8.30917441]
[1756924454481,4.17538967,4478.8,4478.7,1.717]
[1756924454666,4.17538967,4478.8,4478.3,2.82917441]
[1756924454667,4.65311678,4478.8,4478.4,3.759]
[1756924454870,2.23308992,4478.1,4478.0,1.717]
[1756924455085,2.52298992,4478.1,4478.0,5.477]
[1756924455285,3.59118992,4478.1,4478.0,5.477]
[1756924456987,4.17361108,4478.1,4478.0,1.717]
[1756924457290,4.65189788,4478.1,4478.0,5.477]
[1756924458295,0.112,4478.1,4478.0,5.7925]
[1756924458481,0.59067759,4478.6,4478.0,6.8585]
[1756924458795,0.47867759,4478.5,4478.2,5.14877589]
[1756924458978,2.23474802,4478.8,4478.3,4.2185]
[1756924458979,0.47867759,4478.4,4478.3,4.2185]
[1756924459286,0.47867759,4478.4,4478.3,5.0275]
[1756924459793,2.34677705,4478.8,4478.3,5.0275]
[1756924459954,2.71167611,4478.7,4478.3,5.0275]
[1756924460155,0.47888418,4478.6,4478.3,5.0275]
[1756924460356,2.71178581,4478.5,4478.3,5.0275]
[1756924460562,2.34676325,4478.8,4478.3,5.0275]
[1756924460775,2.23289167,4478.5,4478.3,4.567]
[1756924460969,0.4791544,4478.4,4478.3,4.567]
[1756924461484,2.71209473,4478.4,4478.3,3.758]
[1756924461692,0.7710544,4478.4,4478.0,1.829]
[1756924461894,0.4791544,4478.3,4478.1,3.759]
[1756924462093,0.002,4478.4,4478.2,0.809]
[1756924462294,0.002,4478.4,4478.3,12.09476608]
[1756924462694,0.002,4478.4,4478.3,13.31426608]
[1756924465196,0.002,4478.4,4478.3,16.31426608]
[1756924465397,0.00200001,4478.8,4478.7,3.02479076]
[1756924465597,0.00200001,4478.8,4478.7,10.74488396]
[1756924465773,0.00200001,4478.8,4478.7,11.53155606]
[1756924465977,0.002,4479.7,4479.2,3.02454152]
[1756924466294,0.002,4479.7,4479.2,22.02023866]
[1756924466497,0.002,4479.7,4479.2,23.37941325]
[1756924466686,0.002,4479.7,4479.2,25.64732122]
[1756924466888,0.002,4479.7,4479.6,2.23234217]
[1756924467088,0.002,4479.7,4479.6,9.91966559]
[1756924467292,0.002,4479.7,4479.6,11.16684217]
[1756924469185,0.002,4479.7,4479.6,7.57366989]
[1756924469392,0.002,4479.7,4479.6,12.31427847]
[1756924471305,0.002,4479.7,4479.6,11.85377847]
[1756924472278,0.002,4479.7,4479.6,14.68295288]
[1756924472484,0.002,4479.7,4479.6,15.11835288]
[1756924474612,0.002,4479.7,4479.6,3.92178299]
[1756924474799,1.2693,4479.7,4479.6,2.94117441]
[1756924474997,1.2693,4479.7,4479.6,6.69917441]
[1756924475779,1.2693,4479.7,4479.6,0.112]
[1756924476107,1.2693,4479.7,4479.6,3.758]
[1756924477305,0.7747,4479.7,4479.6,3.758]
[1756924477504,0.002,4479.7,4479.6,6.58717441]
[1756924477712,0.002,4479.7,4479.6,10.70223402]
[1756924478008,0.002,4479.7,4479.6,11.59163402]
[1756924478614,0.002,4479.7,4479.6,10.70223402]
[1756924479710,0.002,4479.7,4479.6,4.40309185]
[1756924480022,0.3138,4479.7,4479.6,7.49117441]
[1756924480310,0.7747,4479.7,4479.6,7.49117441]
[1756924480713,0.002,4479.7,4479.6,7.79997441]
[1756924480882,0.002,4479.7,4479.6,10.03231658]
[1756924481284,0.002,4479.7,4479.6,11.71289036]
[1756924481525,0.002,4479.7,4479.6,11.25889036]
[1756924481907,0.002,4479.7,4479.6,12.14829036]
[1756924482418,0.002,4479.7,4479.6,11.71289036]
[1756924483736,0.002,4479.7,4479.6,12.14829036]
[1756924485489,0.002,4479.7,4479.6,11.25889036]
[1756924486219,0.002,4479.7,4479.6,12.14829036]
[1756924486788,0.002,4479.7,4479.6,11.71289036]
[1756924486988,0.002,4479.7,4479.6,11.25889036]
[1756924489022,0.002,4479.7,4479.6,12.14829036]
[1756924489221,0.002,4479.7,4479.6,11.25889036]
[1756924489995,0.7747,4479.7,4479.6,5.96551658]
[1756924490188,0.3138,4479.7,4479.6,6.70217441]
[1756924490390,0.002,4479.7,4479.6,8.93451658]
[1756924490627,0.002,4479.7,4479.6,10.03531658]
[1756924490826,0.002,4479.7,4479.6,10.48931658]
[1756924491118,0.002,4479.7,4479.6,12.50513241]
[1756924491322,0.002,4479.7,4479.6,11.74233241]
[1756924491511,0.3138,4479.7,4479.6,11.74933241]
[1756924491710,0.3138,4479.7,4479.6,7.98133241]
[1756924491913,0.8084,4479.7,4479.6,2.82917441]
[1756924492233,1.2693,4479.7,4479.6,6.59717441]
[1756924492707,1.2693,4479.7,4479.6,6.60817441]
[1756924493213,0.002,4479.7,4479.6,10.05331658]
[1756924493417,0.002,4479.7,4479.6,10.83071658]
[1756924493612,0.002,4479.7,4479.6,12.83713192]
[1756924493798,0.002,4479.7,4479.6,12.40173192]
[1756924494000,0.002,4479.7,4479.6,12.05973192]
[1756924494198,0.002,4479.7,4479.6,12.94913192]
[1756924494799,0.002,4479.7,4479.6,12.51373192]
[1756924495829,0.002,4479.7,4479.6,12.05973192]
[1756924496330,0.3138,4479.7,4479.6,7.97193192]
[1756924496634,0.002,4479.7,4479.6,10.05431658]
[1756924496998,0.002,4480.6,4480.5,3.02389376]
[1756924497194,0.002,4480.6,4480.5,12.71709376]
[1756924500107,0.002,4480.6,4480.5,11.83369376]
[1756924500307,0.002,4480.6,4480.5,12.32949376]
[1756924500505,0.002,4480.6,4480.5,13.82623945]
[1756924501314,0.002,4480.6,4480.5,14.32203945]
[1756924501728,0.002,4480.6,4480.5,14.77713945]
[1756924502305,0.002,4480.6,4480.5,17.60631386]
[1756924502512,0.002,4480.6,4480.5,13.82623945]
[1756924502911,0.002,4480.6,4480.5,10.04123945]
[1756924503231,0.002,4480.6,4480.5,13.82823945]
[1756924503406,0.002,4480.6,4480.5,10.04123945]
[1756924503608,0.002,4480.6,4480.5,13.82823945]
[1756924505403,0.002,4480.6,4480.5,13.82723945]
[1756924506340,0.002,4480.6,4480.5,14.77813945]
[1756924506708,0.002,4480.6,4480.5,14.32303945]
[1756924506933,0.002,4480.6,4480.5,13.82723945]
[1756924507114,0.002,4480.6,4480.5,13.93843945]
[1756924507516,0.002,4480.6,4480.5,16.76761386]
[1756924507806,0.312,4480.6,4480.5,9.67281386]
[1756924508135,1.2622,4480.6,4480.5,11.46426817]
[1756924508728,0.7646,4480.6,4480.5,11.46426817]
[1756924509043,1.2622,4480.6,4480.5,7.68026817]
[1756924509337,1.2622,4480.6,4480.5,11.46426817]
[1756924510008,1.2622,4480.6,4480.5,5.44837441]
[1756924510233,1.2622,4480.6,4480.5,9.23237441]
[1756924511313,1.2622,4480.6,4480.5,6.4032]
[1756924511840,1.2622,4480.6,4480.5,1.8272]
[1756924511841,1.39092,4480.6,4480.5,1.8272]
[1756924512049,3.62276394,4480.6,4480.5,3.8972]
[1756924512252,4.10209153,4480.6,4480.5,3.8962]
[1756924512544,4.21329153,4480.6,4480.5,3.785]
[1756924514642,2.23199339,4480.3,4480.2,1.716]
[1756924514847,2.23204321,4480.2,4480.1,0.001]
[1756924515042,2.71105084,4480.2,4480.1,0.001]
[1756924515223,3.99355499,4480.2,4480.1,0.001]
[1756924516140,6.99355499,4480.2,4480.1,0.001]
[1756924516446,6.97125084,4480.2,4480.1,0.001]
[1756924516739,7.9671489,4480.2,4480.1,0.001]
[1756924516943,20.18706968,4480.2,4480.1,0.001]
[1756924517365,13.4691489,4480.2,4480.1,0.001]
[1756924520521,23.97306968,4480.2,4480.1,0.001]
[1756924522452,20.18706968,4480.2,4480.1,0.001]
[1756924522657,23.97106968,4480.2,4480.1,0.001]
[1756924523247,13.4661489,4480.2,4480.1,0.001]
[1756924526241,9.6831489,4480.2,4480.1,0.001]
[1756924526446,13.4641489,4480.2,4480.1,0.001]
[1756924532145,24.76006968,4480.2,4480.1,0.001]
[1756924532730,24.76206968,4480.2,4480.1,0.001]
[1756924539161,20.98106968,4480.2,4480.1,0.001]
[1756924539363,2.23224251,4479.8,4479.7,0.001]
[1756924539567,9.62055429,4479.8,4479.7,0.001]
[1756924539862,10.84345014,4479.8,4479.7,0.001]
[1756924540066,10.93296053,4479.8,4479.7,0.001]
[1756924541751,11.04565016,4479.8,4479.7,0.001]
[1756924541958,11.81890649,4479.8,4479.7,0.001]
[1756924542152,11.70621686,4479.8,4479.7,0.001]
[1756924542574,10.75891686,4479.8,4479.7,0.001]
[1756924544066,6.98391686,4479.8,4479.7,0.001]
[1756924544384,10.75491686,4479.8,4479.7,0.001]
[1756924544887,11.70221686,4479.8,4479.7,0.001]
[1756924545252,0.792,4479.6,4478.8,0.026]
[1756924545553,2.34469106,4478.9,4478.8,0.026]
[1756924545753,9.61800284,4478.9,4478.8,0.026]
[1756924545976,9.59569869,4478.9,4478.8,0.026]
[1756924546389,9.59569869,4478.9,4478.8,0.3386]
[1756924546598,10.82808094,4478.9,4478.8,0.8341]
[1756924547185,10.82808094,4478.9,4478.8,0.3386]
[1756924547881,7.05608094,4478.9,4478.8,1.2849]
[1756924548058,10.82808094,4478.9,4478.8,1.2849]
[1756924548259,5.82369869,4478.9,4478.8,1.2849]
[1756924549764,6.12159869,4478.9,4478.8,0.026]
[1756924550165,5.82369869,4478.9,4478.8,0.3386]
[1756924550369,9.59669869,4478.9,4478.8,1.2849]
[1756924550664,5.82369869,4478.9,4478.8,1.2849]
[1756924553256,5.82369869,4478.9,4478.8,0.8341]
[1756924553460,5.82369869,4478.9,4478.8,1.2849]
[1756924553695,11.14366238,4478.9,4478.8,0.026]
[1756924555359,2.23289047,4478.5,4478.4,0.001]
[1756924555558,14.76863495,4478.5,4478.4,0.001]
[1756924555860,15.9915308,4478.5,4478.4,0.001]
[1756924556085,16.95572633,4478.5,4478.4,0.001]
[1756924557669,2.23318966,4477.9,4477.8,1e-08]
[1756924557890,17.05993555,4477.9,4477.8,1e-08]
[1756924558209,18.2828314,4477.9,4477.8,1e-08]
[1756924558528,19.27872946,4477.9,4477.8,1e-08]
[1756924558712,20.07072946,4477.9,4477.8,1e-08]
[1756924558889,25.22116216,4477.9,4477.8,1e-08]
[1756924560393,20.07072946,4477.9,4477.8,1e-08]
[1756924561197,25.22116216,4477.9,4477.8,1e-08]
[1756924561396,3.02543904,4477.4,4477.3,0.001]
[1756924561694,17.83630131,4477.4,4477.3,0.001]
[1756924561890,17.81399716,4477.4,4477.3,0.001]
[1756924563770,17.81399716,4477.4,4476.8,0.025]
[1756924563771,2.23368848,4476.9,4476.8,1e-08]
[1756924563989,16.48543296,4476.9,4476.8,1e-08]
[1756924564197,17.20542881,4476.9,4476.8,1e-08]
[1756924564498,18.0824118,4476.9,4476.8,1e-08]
[1756924566487,19.12854889,4476.9,4476.8,1e-08]
[1756924566785,19.44741321,4476.9,4476.8,1e-08]
[1756924567915,19.44741321,4476.9,4475.8,0.025]
[1756924567916,2.23418753,4475.9,4475.8,0.025]
[1756924568219,16.93276244,4475.9,4475.8,0.025]
[1756924568393,17.19625829,4475.9,4475.8,0.025]
[1756924568734,17.30622428,4475.9,4475.8,0.025]
[1756924568904,17.02042428,4475.9,4475.8,0.025]
[1756924569710,2.23443714,4475.4,4475.3,0.001]
[1756924569917,14.77118162,4475.4,4475.3,0.001]
[1756924570136,14.74887747,4475.4,4475.3,0.3068]
[1756924570489,14.74887747,4475.4,4475.3,0.7791]
[1756924571399,10.97587747,4475.4,4475.3,1.2201]
[1756924571598,14.74787747,4475.4,4475.3,1.2201]
[1756924571798,14.26886984,4475.4,4475.3,1.2201]
[1756924572102,9.11743714,4475.4,4475.3,1.2201]
[1756924579033,9.11643714,4475.4,4475.3,1.2201]
[1756924579335,3.112,4475.4,4475.3,1.2201]
[1756924580037,0.112,4475.4,4475.3,1.2201]
[1756924580938,2.34643714,4475.4,4475.3,1.2201]
[1756924581723,2.34643714,4475.4,4475.3,0.7791]
[1756924581924,2.34643714,4475.4,4475.3,0.3068]
[1756924582329,2.82230709,4475.4,4475.3,0.3068]
[1756924582530,2.82230709,4475.4,4475.3,1.2201]
[1756924586136,2.82230709,4475.4,4475.3,0.7791]
[1756924586338,2.82230709,4475.4,4475.3,1.2201]
[1756924586648,4.00700259,4475.4,4475.3,0.3068]
[1756924586954,4.00700259,4475.4,4474.8,1e-08]
[1756924586955,5.23448707,4475.3,4474.8,1e-08]
[1756924587122,3.0,4474.8,4474.6,0.001]
[1756924587309,10.3008654,4474.9,4473.8,0.025]
[1756924587310,6.02683663,4474.6,4473.8,0.025]
[1756924587508,16.10714069,4474.6,4473.8,0.025]
[1756924587710,17.30224069,4474.6,4473.8,0.025]
[1756924588021,17.72642368,4474.6,4473.8,0.025]
[1756924588625,22.87685638,4474.6,4473.8,0.025]
[1756924588941,22.55799206,4474.6,4473.8,0.025]
[1756924589617,22.30385497,4474.6,4473.8,0.025]
[1756924589854,22.30385497,4474.6,4474.4,0.001]
[1756924590007,2.23488657,4474.5,4474.4,0.001]
[1756924590208,2.23488657,4474.5,4473.6,1e-08]
[1756924590209,0.792,4474.0,4473.6,1e-08]
[1756924590520,2.2354861,4473.3,4473.0,0.001]
[1756924590718,22.84361687,4473.3,4473.0,0.001]
[1756924590915,18.99528002,4473.3,4473.0,0.001]
[1756924591514,8.28844591,4473.3,4473.0,0.001]
[1756924591724,12.05944591,4473.3,4473.0,0.001]
[1756924591927,12.35114591,4473.3,4473.0,0.001]
[1756924592311,12.78084591,4473.3,4473.0,0.001]
[1756924593020,13.27184591,4473.3,4473.0,0.001]
[1756924593558,13.27184591,4473.3,4471.8,0.025]
[1756924593559,0.792,4472.9,4471.8,0.025]
[1756924593848,3.0,4472.4,4471.8,0.025]
[1756924594018,2.23618596,4471.9,4471.8,0.025]
[1756924594358,6.51436006,4471.9,4471.8,0.025]
[1756924594511,9.78375591,4471.9,4471.8,0.025]
[1756924594720,10.2079389,4471.9,4471.8,0.025]
[1756924596938,10.2059389,4471.9,4471.8,0.025]
[1756924598260,0.47586995,4471.9,4471.8,1.2019]
[1756924598429,4.25386995,4471.9,4471.8,1.2019]
[1756924598756,9.51236006,4471.9,4471.8,1.2019]
[1756924598975,6.49005591,4471.9,4471.8,1.2019]
[1756924599255,9.49005591,4471.9,4471.8,0.7713]
[1756924599938,9.49005591,4471.9,4471.8,1.2019]
[1756924600529,9.49605591,4471.9,4471.8,1.2019]
[1756924601630,3.47586995,4471.9,4471.8,1.2019]
[1756924601834,7.25886995,4471.9,4471.8,1.2019]
[1756924602832,7.25886995,4471.9,4471.8,0.4814]
[1756924603162,9.49505591,4471.9,4471.8,1.2019]
[1756924604033,9.60705591,4471.9,4471.8,1.2019]
[1756924604973,9.60705591,4471.9,4471.8,0.7713]
[1756924605180,7.37086995,4471.9,4471.8,1.2019]
[1756924605482,0.58786995,4471.9,4471.8,1.2019]
[1756924605776,0.112,4471.9,4471.8,1.2019]
[1756924607034,0.112,4471.9,4471.8,3.78195941]
[1756924607286,0.112,4471.9,4471.8,0.025]
[1756924607287,4.45188596,4471.9,4471.8,0.025]
[1756924607436,9.59952203,4471.9,4471.8,0.025]
[1756924607629,8.95787376,4471.9,4471.8,0.026]
[1756924609095,8.95787376,4471.9,4471.3,0.001]
[1756924609096,2.23643601,4471.4,4471.3,0.001]
[1756924609254,9.52102796,4471.4,4471.3,0.001]
[1756924609583,2.23663609,4471.0,4470.9,0.001]
[1756924609763,11.24022804,4471.0,4470.9,0.001]
[1756924609979,12.43032389,4471.0,4470.9,0.001]
[1756924610180,12.54232389,4471.0,4470.9,0.001]
[1756924613170,12.05132389,4471.0,4470.9,0.001]
[1756924613391,12.90404036,4471.0,4470.9,0.001]
[1756924614393,13.39504036,4471.0,4470.9,0.001]
[1756924614895,5.23668612,4470.9,4470.8,1e-08]
[1756924615064,6.20097392,4470.9,4470.8,1e-08]
[1756924615261,8.00235372,4470.9,4470.8,1e-08]
[1756924615484,2.23718651,4469.9,4469.7,0.4306]
[1756924615686,6.49847431,4469.9,4469.8,0.4814]
[1756924615886,6.49847431,4469.9,4469.8,0.7713]
[1756924616085,9.49847431,4469.9,4469.8,1.2019]
[1756924616388,9.61047431,4469.9,4469.8,1.2019]
[1756924616566,9.61047431,4469.9,4469.8,0.7713]
[1756924616760,9.61047431,4469.9,4469.8,1.2019]
[1756924617167,5.82247431,4469.9,4469.8,1.2019]
[1756924617575,9.60947431,4469.9,4469.8,1.2019]
[1756924618172,9.60947431,4469.9,4469.8,0.3149]
[1756924618627,9.60947431,4469.9,4469.8,1.2019]
[1756924619106,4.3722878,4469.9,4469.8,1.2019]
[1756924619505,0.5852878,4469.9,4469.8,1.2019]
[1756924619702,4.3712878,4469.9,4469.8,1.2019]
[1756924620026,0.5852878,4469.9,4469.8,1.2019]
[1756924620514,0.5852878,4469.9,4469.8,3.78305862]
[1756924620822,3.792,4470.5,4469.8,4.37499647]
[1756924620986,0.47586517,4470.4,4469.9,0.8923]
[1756924621305,0.112,4469.9,4469.8,2.85417441]
[1756924621507,4.37486517,4469.9,4469.8,3.14977441]
[1756924621709,0.58786517,4469.9,4469.8,3.14977441]
[1756924621901,0.58786517,4469.9,4469.8,4.04207441]
[1756924622098,2.82505168,4469.9,4469.8,4.04207441]
[1756924622278,0.58786517,4469.9,4469.8,4.04207441]
[1756924622994,2.82505168,4469.9,4469.8,4.04207441]
[1756924623629,2.82505168,4469.9,4469.8,3.14977441]
[1756924624022,0.58786517,4469.9,4469.8,3.14977441]
[1756924624223,2.82505168,4469.9,4469.8,0.3206]
[1756924626213,2.82505168,4469.9,4469.8,0.025]
[1756924627912,2.82505168,4469.9,4469.8,0.3206]
[1756924628390,2.82875696,4469.9,4469.8,0.3206]
[1756924629296,0.59157045,4469.9,4469.8,0.3206]
[1756924629512,0.59157045,4469.9,4469.8,0.7815]
[1756924629717,0.59157045,4469.9,4469.8,1.2129]
[1756924630100,2.82875696,4469.9,4469.8,1.2129]
[1756924630318,6.61275696,4469.9,4469.8,0.3206]
[1756924630890,2.82875696,4469.9,4469.8,0.3206]
[1756924631718,3.14065696,4469.9,4469.8,0.025]
[1756924632034,2.82875696,4469.9,4469.8,0.3206]
[1756924632389,4.34794663,4469.9,4469.8,0.025]
[1756924632897,4.80934663,4469.9,4469.8,0.025]
[1756924633126,4.32564248,4469.9,4469.8,0.025]
[1756924633327,4.34794663,4469.9,4469.8,0.025]
[1756924634025,4.32564248,4469.9,4469.8,0.025]
[1756924634211,4.01374248,4469.9,4469.8,0.025]
[1756924634528,0.59157045,4469.9,4469.8,0.7815]
[1756924634726,0.59157045,4469.9,4469.8,1.2129]
[1756924635095,0.59157045,4469.9,4469.8,0.7815]
[1756924635490,2.82875696,4469.9,4469.8,0.3206]
[1756924635697,2.85106111,4469.9,4469.8,0.025]
[1756924635892,0.59157045,4469.9,4469.8,0.3206]
[1756924636192,0.59157045,4469.9,4469.8,1.2129]
[1756924636392,2.82875696,4469.9,4469.8,1.2129]
[1756924636721,2.82875696,4469.9,4469.8,0.7815]
[1756924636933,2.82875696,4469.9,4469.8,0.3206]
[1756924638423,3.14065696,4469.9,4469.8,0.025]
[1756924639897,5.36240272,4469.9,4469.8,0.025]
[1756924640097,8.19050272,4469.9,4469.8,0.025]
[1756924640333,7.87860272,4469.9,4469.8,0.3206]
[1756924640499,6.61375696,4469.9,4469.8,0.3206]
[1756924640694,7.88255696,4469.9,4469.8,0.025]
[1756924640896,10.88255696,4469.9,4469.8,0.025]
[1756924641101,12.1945223,4469.9,4469.8,0.025]
[1756924643239,12.1945223,4469.9,4469.8,0.026]
[1756924643940,17.93396229,4469.9,4469.8,0.026]
[1756924644240,18.39536229,4469.9,4469.8,0.026]
[1756924650225,11.2174223,4469.9,4469.8,0.026]
[1756924652725,7.4334223,4469.9,4469.8,0.026]
[1756924652925,12.1376223,4469.9,4469.8,1e-08]
[1756924653131,2.23733667,4469.6,4469.5,0.001]
[1756924653437,15.83634598,4469.6,4469.5,0.001]
[1756924653637,17.02794183,4469.6,4469.5,0.001]
[1756924654336,17.03394183,4469.6,4469.5,0.001]
[1756924659735,17.1236564,4469.6,4469.5,0.001]
[1756924660049,18.62380401,4469.6,4469.5,0.001]
[1756924660742,14.82980401,4469.6,4469.5,0.001]
[1756924661043,18.62280401,4469.6,4469.5,0.001]
[1756924663215,2.23758698,4469.1,4468.8,1e-08]
[1756924663543,2.23753691,4469.2,4468.8,1e-08]
[1756924663544,8.43852711,4468.9,4468.8,1e-08]
[1756924663842,9.31909228,4468.9,4468.8,1e-08]
[1756924664031,9.02639228,4468.9,4468.8,0.28940001]
[1756924664214,6.61655229,4468.9,4468.8,1e-08]
[1756924664649,6.90925229,4468.9,4468.8,1e-08]
[1756924664851,8.08221673,4468.9,4468.8,1e-08]
[1756924665444,11.08221673,4468.9,4468.8,1e-08]
[1756924665624,11.53101673,4468.9,4468.8,1e-08]
[1756924666516,11.08221673,4468.9,4468.8,1e-08]
[1756924666917,11.53101673,4468.9,4468.8,1e-08]
[1756924667137,11.08221673,4468.9,4468.8,1e-08]
[1756924667346,10.78651673,4468.9,4468.8,1e-08]
[1756924667516,11.52801673,4468.9,4468.8,1e-08]
[1756924669965,7.29121673,4468.9,4468.8,1e-08]
[1756924670172,11.07821673,4468.9,4468.8,1e-08]
[1756924670961,6.99851673,4468.9,4468.8,1.25580001]
[1756924671122,9.61255229,4468.9,4468.8,0.78660001]
[1756924671454,6.11825229,4468.9,4468.8,1e-08]
[1756924671625,14.78426297,4468.9,4468.8,0.78660001]
[1756924672163,14.78426297,4468.9,4468.8,1.25580001]
[1756924672723,14.78326297,4468.9,4468.8,1.25580001]
[1756924673218,7.97041598,4468.9,4468.8,0.28940001]
[1756924673422,14.78326297,4468.9,4468.8,0.28940001]
[1756924674935,14.78326297,4468.9,4468.8,1e-08]
[1756924676138,14.78326297,4468.9,4468.8,0.28940001]
[1756924676537,14.78026297,4468.9,4468.8,0.28940001]
[1756924677629,14.78026297,4468.9,4468.8,1.25680001]
[1756924677630,5.82555229,4468.9,4468.8,1.25680001]
[1756924677930,14.78226297,4468.9,4468.8,0.29040001]
[1756924678129,14.78596825,4468.9,4468.8,0.29040001]
[1756924679845,16.72770957,4468.9,4468.8,0.29040001]
[1756924680245,16.72770957,4468.9,4468.8,0.00100001]
[1756924680445,17.02370957,4468.9,4468.8,0.00100001]
[1756924680644,16.72770957,4468.9,4468.8,0.00100001]
[1756924681065,16.72770957,4468.9,4468.8,0.31640001]
[1756924681261,17.02370957,4468.9,4468.8,0.00100001]
[1756924681452,17.49610957,4468.9,4468.8,0.00100001]
[1756924681652,16.72770957,4468.9,4468.8,0.00100001]
[1756924681853,17.02370957,4468.9,4468.8,0.00100001]
[1756924682164,17.49610957,4468.9,4468.8,0.00100001]
[1756924682750,17.02370957,4468.9,4468.8,0.00100001]
[1756924683130,12.94470957,4468.9,4468.8,0.00100001]
[1756924683331,16.72670957,4468.9,4468.8,0.31640001]
[1756924683633,12.94470957,4468.9,4468.8,0.31640001]
[1756924683831,16.72570957,4468.9,4468.8,1.24980001]
[1756924684133,15.55236825,4468.9,4468.8,0.00100001]
[1756924684530,16.3275511,4468.9,4468.8,0.00100001]
[1756924684936,2.23778727,4468.7,4468.6,0.001]
[1756924685161,14.68966727,4468.7,4468.6,0.001]
[1756924685360,14.66736312,4468.7,4468.6,0.001]
[1756924685569,14.66636312,4468.7,4468.6,0.001]
[1756924686451,14.66636312,4468.7,4468.6,0.3164]
[1756924686452,7.90777515,4468.7,4468.6,0.3164]
[1756924686657,11.80077515,4468.7,4468.6,0.8005]
[1756924686854,11.80077515,4468.7,4468.6,1.2498]
[1756924687151,9.60665244,4468.7,4468.6,0.8005]
[1756924687352,5.82565244,4468.7,4468.6,1.2498]
[1756924687676,9.60665244,4468.7,4468.6,0.3164]